bitfinex/quotes_BTCUSD_20250602
["timestamp","ask_amount","ask_price","bid_price","bid_amount"]
[1748898109387,0.10402209,105000.0,104990.0,0.69710673]
[1748898109640,0.09509395,105000.0,104990.0,0.69710673]
[1748898110112,0.10402209,105000.0,104990.0,0.69710673]
[1748898110341,0.09509395,105000.0,104990.0,0.69710673]
[1748898110798,0.10402209,105000.0,104990.0,0.69710673]
[1748898111026,0.10402189,105000.0,104990.0,0.69710673]
[1748898111239,0.09509395,105000.0,104990.0,0.69710673]
[1748898111450,0.1040219,105000.0,104990.0,0.69710673]
[1748898111665,0.09509395,105000.0,104990.0,0.69710673]
[1748898112082,0.10402208,105000.0,104990.0,0.69710673]
[1748898112499,0.09509395,105000.0,104990.0,0.69710673]
[1748898112921,0.10402208,105000.0,104990.0,0.69710673]
[1748898113142,0.09509395,105000.0,104990.0,0.69706673]
[1748898115612,0.10402216,105000.0,104990.0,0.69706673]
[1748898115819,0.09509395,105000.0,104990.0,0.69706673]
[1748898116044,0.10402216,105000.0,104990.0,0.69706673]
[1748898116254,0.09509395,105000.0,104990.0,0.69706673]
[1748898118787,0.08570668,105000.0,104990.0,0.72826673]
[1748898120352,0.09503666,105000.0,104990.0,0.69706673]
[1748898120786,0.08570668,105000.0,104990.0,0.69706673]
[1748898121217,0.08570668,105000.0,104990.0,0.72826673]
[1748898122555,0.08570668,105000.0,104990.0,1.23840506]
[1748898123207,0.07370668,105000.0,104990.0,1.23740506]
[1748898123418,0.07370668,105000.0,104990.0,1.23640506]
[1748898123614,0.06770668,105000.0,104990.0,1.24240506]
[1748898123851,0.06770668,105000.0,104990.0,1.24840506]
[1748898124065,0.06770668,105000.0,104990.0,0.64910673]
[1748898124270,0.06770668,105000.0,104990.0,0.44738673]
[1748898124474,0.06770668,105000.0,104990.0,0.73822673]
[1748898126602,0.06770668,105000.0,104990.0,0.73222673]
[1748898127050,0.06770668,105000.0,104990.0,0.73622673]
[1748898128160,0.06770668,105000.0,104990.0,0.73022673]
[1748898128367,0.06770668,105000.0,104990.0,0.73422673]
[1748898129232,0.06770668,105000.0,104990.0,0.35426673]
[1748898129441,0.06770668,105000.0,104990.0,0.73418673]
[1748898129897,0.06770668,105000.0,104990.0,1.22978421]
[1748898130327,0.06770668,105000.0,104990.0,1.24432506]
[1748898131894,0.06770668,105000.0,104990.0,0.84986421]
[1748898132120,0.06770668,105000.0,104990.0,0.35426673]
[1748898132342,0.06770668,105000.0,104990.0,0.73414673]
[1748898134848,0.06770668,105000.0,104990.0,0.73430673]
[1748898135487,0.06770668,105000.0,104990.0,0.35426673]
[1748898135693,0.06770668,105000.0,104990.0,0.73422673]
[1748898137011,0.06770668,105000.0,104990.0,0.73418673]
[1748898138367,0.06770668,105000.0,104990.0,0.73410673]
[1748898142621,0.06770668,105000.0,104990.0,0.81410673]
[1748898148293,0.06770668,105000.0,104990.0,0.43426673]
[1748898148546,0.06770668,105000.0,104990.0,0.81410673]
[1748898148775,0.06770668,105000.0,104990.0,1.30970421]
[1748898153417,0.06770668,105000.0,104990.0,1.30874174]
[1748898154090,0.06770668,105000.0,104990.0,1.72014174]
[1748898154299,0.06770668,105000.0,104990.0,1.73468259]
[1748898154958,0.06770668,105000.0,104990.0,2.07468259]
[1748898155403,0.06760368,105000.0,104990.0,2.07468259]
[1748898157610,0.06760368,105000.0,104990.0,2.5693176]
[1748898158264,0.06760368,105000.0,104990.0,2.9693176]
[1748898158936,0.06760368,105000.0,104990.0,2.9653176]
[1748898159149,0.06760368,105000.0,104990.0,2.9713176]
[1748898159357,0.06760368,105000.0,104990.0,2.47650501]
[1748898159790,0.06760368,105000.0,104990.0,2.47250501]
[1748898160006,0.06760368,105000.0,104990.0,2.47650501]
[1748898160889,0.06760368,105000.0,104990.0,1.98204758]
[1748898161102,0.06760368,105000.0,104990.0,2.47650501]
[1748898161745,0.06760368,105000.0,104990.0,1.98204758]
[1748898161956,0.06760368,105000.0,104990.0,2.47650501]
[1748898164796,0.06760368,105000.0,104990.0,2.47646501]
[1748898168249,0.06520368,105000.0,104990.0,2.47646501]
[1748898168934,0.06520368,105000.0,104990.0,1.27670673]
[1748898169175,0.06520368,105000.0,104990.0,1.56746673]
[1748898170257,0.06520368,105000.0,104990.0,2.06192416]
[1748898171078,0.06520368,105000.0,104990.0,1.27670673]
[1748898171281,0.06520368,105000.0,104990.0,1.56746673]
[1748898172598,0.06520368,105000.0,104990.0,1.56736373]
[1748898174748,0.06520368,105000.0,104990.0,0.81636373]
[1748898174956,0.06520368,105000.0,104990.0,1.19639373]
[1748898175594,0.06520368,105000.0,104990.0,1.19239373]
[1748898175992,0.06520368,105000.0,104990.0,1.19539373]
[1748898176450,0.06520368,105000.0,104990.0,1.18939373]
[1748898176859,0.06520368,105000.0,104990.0,1.19239373]
[1748898177515,0.06520368,105000.0,104990.0,1.20809373]
[1748898179172,0.06520368,105000.0,104990.0,1.22319373]
[1748898180737,0.06520368,105000.0,104990.0,0.84339373]
[1748898181039,0.06520368,105000.0,104990.0,1.22319373]
[1748898183314,0.06520368,105000.0,104990.0,1.71790459]
[1748898189343,0.06520368,105000.0,104990.0,1.42714459]
[1748898189547,0.06520368,105000.0,104990.0,1.71790459]
[1748898190328,0.06520368,105000.0,104990.0,1.22319373]
[1748898190548,0.06520368,105000.0,104990.0,1.30650459]
[1748898195996,0.06520368,105000.0,104990.0,2.1557563]
[1748898196637,0.06520368,105000.0,104990.0,2.5557563]
[1748898197266,0.06520368,105000.0,104990.0,2.06083229]
[1748898199695,0.06520368,105000.0,104990.0,2.47223229]
[1748898209560,0.06520368,105000.0,104990.0,3.26553]
[1748898209774,0.06520368,105000.0,104990.0,2.77103229]
[1748898209951,0.06520368,105000.0,104990.0,2.80141622]
[1748898210188,0.06520368,105000.0,104990.0,2.77103229]
[1748898210391,0.06520368,105000.0,104990.0,2.76803229]
[1748898211575,0.06520368,105000.0,104990.0,2.76503229]
[1748898211745,0.06520368,105000.0,104990.0,2.76803229]
[1748898211953,0.06520368,105000.0,104990.0,2.77103229]
[1748898215347,0.06520368,105000.0,104990.0,3.26553]
[1748898215541,0.06520368,105000.0,104990.0,3.30591393]
[1748898215745,0.06520368,105000.0,104990.0,3.27553]
[1748898216384,0.06520368,105000.0,104990.0,3.27253]
[1748898216807,0.06520368,105000.0,104990.0,3.30590667]
[1748898217020,0.04734549,105000.0,104990.0,3.31190667]
[1748898218108,0.04734549,105000.0,104990.0,3.31182667]
[1748898218447,0.04734549,105000.0,104990.0,2.92210667]
[1748898218730,0.04734549,105000.0,104990.0,2.51664896]
[1748898218937,0.04734549,105000.0,104990.0,2.80728896]
[1748898222418,0.04719649,105000.0,104990.0,2.80728896]
[1748898225213,0.04719649,105000.0,104990.0,3.30169109]
[1748898225427,0.04719649,105000.0,104990.0,3.27131442]
[1748898225640,0.04719649,105000.0,104990.0,3.29990342]
[1748898226360,0.04719649,105000.0,104990.0,3.33030048]
[1748898227617,0.04719649,105000.0,104990.0,3.29990342]
[1748898229706,0.04719649,105000.0,104990.0,3.29982342]
[1748898229910,0.04719649,105000.0,104990.0,3.33022093]
[1748898230648,0.04719649,105000.0,104990.0,2.95062093]
[1748898230854,0.04719649,105000.0,104990.0,3.33022289]
[1748898231490,0.04719649,105000.0,104990.0,2.95062289]
[1748898231695,0.04719649,105000.0,104990.0,3.33022289]
[1748898233219,0.04719649,105000.0,104990.0,2.83581871]
[1748898233635,0.03019649,105000.0,104990.0,2.83581871]
[1748898234265,0.03019649,105000.0,104990.0,2.45621871]
[1748898234513,0.03019649,105000.0,104990.0,2.83581871]
[1748898235334,0.03019649,105000.0,104990.0,2.83341871]
[1748898236171,0.03019649,105000.0,104990.0,2.53461871]
[1748898240237,0.03019649,105000.0,104990.0,0.84478273]
[1748898240448,0.03019649,105000.0,104990.0,0.90519373]
[1748898240660,0.03019649,105000.0,104990.0,1.19579373]
[1748898241085,0.03019649,105000.0,104990.0,1.52979373]
[1748898241267,0.03019649,105000.0,104990.0,1.67828939]
[1748898241514,0.03019649,105000.0,104990.0,1.68328939]
[1748898241730,0.03019649,105000.0,104990.0,2.02928939]
[1748898241931,0.03019649,105000.0,104990.0,2.02328939]
[1748898242156,0.03019649,105000.0,104990.0,2.02828939]
[1748898243245,0.03019649,105000.0,104990.0,2.02328939]
[1748898243875,0.03019649,105000.0,104990.0,2.02728939]
[1748898244522,0.02962786,105000.0,104990.0,2.02728939]
[1748898244730,0.02962786,105000.0,104990.0,1.15319373]
[1748898244957,0.02962786,105000.0,104990.0,1.53279373]
[1748898245386,0.02962786,105000.0,104990.0,1.24219373]
[1748898245592,0.02962786,105000.0,104990.0,1.53279373]
[1748898246008,0.02962786,105000.0,104990.0,0.89819373]
[1748898246216,0.02962786,105000.0,104990.0,0.90119373]
[1748898246426,0.02962786,105000.0,104990.0,0.40079373]
[1748898246632,0.02962786,105000.0,104990.0,0.78039373]
[1748898246839,0.02962786,105000.0,104990.0,0.77539373]
[1748898247050,0.02962786,105000.0,104990.0,0.48479373]
[1748898247253,0.02962786,105000.0,104990.0,0.77539373]
[1748898247456,0.02962786,105000.0,104990.0,0.77339373]
[1748898247659,0.02962786,105000.0,104990.0,0.77539373]
[1748898250216,0.03897377,105000.0,104990.0,0.77539373]
[1748898252585,0.03897377,105000.0,104990.0,0.48479373]
[1748898252789,0.03897377,105000.0,104990.0,0.77539373]
[1748898255135,0.03897377,105000.0,104990.0,0.77535373]
[1748898263439,0.03897377,105000.0,104990.0,0.80655373]
[1748898264637,0.03897377,105000.0,104990.0,0.77535373]
[1748898265417,0.03897377,105000.0,104990.0,0.79075373]
[1748898265618,0.03897377,105000.0,104990.0,0.77535373]
[1748898269282,0.07337364,105000.0,104990.0,0.77535373]
[1748898270850,0.07337364,105000.0,104990.0,0.80585373]
[1748898273394,0.07337364,105000.0,104990.0,0.51525373]
[1748898273605,0.07337364,105000.0,104990.0,0.80585373]
[1748898274638,0.06402773,105000.0,104990.0,0.80585373]
[1748898277112,0.06402773,105000.0,104990.0,1.30034939]
[1748898277568,0.06402773,105000.0,104990.0,1.31489024]
[1748898279795,0.06402773,105000.0,104990.0,1.65489024]
[1748898282780,0.06402773,105000.0,104990.0,2.05489024]
[1748898286492,0.06402773,105000.0,104990.0,2.35369024]
[1748898295165,0.06402773,105000.0,104990.0,2.35357024]
[1748898295365,0.06402773,105000.0,104990.0,2.76493024]
[1748898296551,0.04102773,105000.0,104990.0,2.76493024]
[1748898299351,0.04102773,105000.0,104990.0,3.25940312]
[1748898300397,0.03602773,105000.0,104990.0,3.25940312]
[1748898300614,0.05007065,105010.0,105000.0,0.21904651]
[1748898300826,0.05007065,105010.0,105000.0,2.16905362]
[1748898301509,0.05007065,105010.0,105000.0,2.56905362]
[1748898302674,0.05007065,105010.0,105000.0,2.57205362]
[1748898303374,0.05007065,105010.0,105000.0,2.07922419]
[1748898304302,0.05007065,105010.0,105000.0,2.37802419]
[1748898306976,0.05007065,105010.0,105000.0,2.39256504]
[1748898307599,0.05007065,105010.0,105000.0,2.42296451]
[1748898307818,0.05007065,105010.0,105000.0,2.39256504]
[1748898308637,0.05007065,105010.0,105000.0,2.42296451]
[1748898309768,0.08939784,105020.0,105000.0,2.90822905]
[1748898309989,0.07746568,105030.0,105020.0,1.57912818]
[1748898310235,0.07746568,105030.0,105020.0,1.97378248]
[1748898310698,0.05646568,105030.0,105020.0,2.38832333]
[1748898310922,0.05646568,105030.0,105020.0,2.08952333]
[1748898311365,0.05646568,105030.0,105020.0,2.38832333]
[1748898311580,0.05646568,105030.0,105020.0,2.39832333]
[1748898311799,0.05646568,105030.0,105020.0,2.40332333]
[1748898312014,0.05646568,105030.0,105020.0,1.86097995]
[1748898312438,0.05646568,105030.0,105020.0,1.99361906]
[1748898312646,0.05646568,105030.0,105020.0,2.37289906]
[1748898312855,0.05646568,105030.0,105020.0,1.1723591]
[1748898313068,0.05646568,105030.0,105020.0,2.04591079]
[1748898313272,0.05646568,105030.0,105020.0,2.06045164]
[1748898313483,0.05646568,105030.0,105020.0,1.18489995]
[1748898313697,0.05646568,105030.0,105020.0,1.16413995]
[1748898313912,0.05646568,105030.0,105020.0,1.16713995]
[1748898314770,0.05646568,105030.0,105020.0,1.66145164]
[1748898316050,0.05646568,105030.0,105020.0,1.96025164]
[1748898316915,0.05146568,105030.0,105020.0,1.96025164]
[1748898317119,0.05146568,105030.0,105020.0,1.98919596]
[1748898317760,0.05129595,105030.0,105020.0,2.38919596]
[1748898327074,0.05129595,105030.0,105020.0,2.80035596]
[1748898327906,0.05129595,105030.0,105020.0,2.50155596]
[1748898333686,0.05129595,105030.0,105020.0,2.80035596]
[1748898337619,0.05129595,105030.0,105020.0,2.83075543]
[1748898340283,0.05129595,105030.0,105020.0,2.45155543]
[1748898340492,0.05129595,105030.0,105020.0,2.83067543]
[1748898345510,0.05129595,105030.0,105020.0,2.33636374]
[1748898345722,0.05129595,105030.0,105020.0,2.83067543]
[1748898345938,0.05129595,105030.0,105020.0,2.80027596]
[1748898346149,0.05129595,105030.0,105020.0,2.83063543]
[1748898348448,0.05129595,105030.0,105020.0,2.85921743]
[1748898350529,0.05110552,105030.0,105020.0,2.85921743]
[1748898351589,0.05110552,105030.0,105020.0,2.56041743]
[1748898353293,0.05110552,105030.0,105020.0,2.06610574]
[1748898353489,0.05110552,105030.0,105020.0,2.56041743]
[1748898353944,0.05110552,105030.0,105020.0,0.81829942]
[1748898354154,0.05110552,105030.0,105020.0,0.4906591]
[1748898354357,0.05110552,105030.0,105020.0,0.7809391]
[1748898354963,0.05110552,105030.0,105020.0,0.7779391]
[1748898355404,0.05110552,105030.0,105020.0,0.7799391]
[1748898355606,0.05110552,105030.0,105020.0,0.7759391]
[1748898356017,0.05110552,105030.0,105020.0,0.7769391]
[1748898356428,0.05110552,105030.0,105020.0,0.7749391]
[1748898356631,0.05110552,105030.0,105020.0,0.7759391]
[1748898362987,0.05110552,105030.0,105020.0,0.3968591]
[1748898363196,0.05110552,105030.0,105020.0,0.7760191]
[1748898363390,0.05110552,105030.0,105020.0,0.3968591]
[1748898364030,0.05110552,105030.0,105020.0,0.7760191]
[1748898364224,0.05110552,105030.0,105020.0,0.8071991]
[1748898364423,0.05110552,105030.0,105020.0,1.30151079]
[1748898364855,0.05110552,105030.0,105020.0,1.31605164]
[1748898365069,0.05110552,105030.0,105020.0,0.82173995]
[1748898365576,0.05110552,105030.0,105020.0,1.31605164]
[1748898365942,0.05110552,105030.0,105020.0,1.71605164]
[1748898367472,0.04858552,105030.0,105020.0,1.31605164]
[1748898368320,0.04858552,105030.0,105020.0,1.65605164]
[1748898369333,0.04858552,105030.0,105020.0,1.95485164]
[1748898371413,0.04858552,105030.0,105020.0,1.65605164]
[1748898371622,0.04858552,105030.0,105020.0,2.05605164]
[1748898375276,0.04858552,105030.0,105020.0,2.08463164]
[1748898377702,0.04858552,105030.0,105020.0,2.08483164]
[1748898380914,0.04858552,105030.0,105020.0,1.70539164]
[1748898381154,0.04858552,105030.0,105020.0,2.09319164]
[1748898381361,0.04858552,105030.0,105020.0,2.38375164]
[1748898385887,0.04858552,105030.0,105020.0,2.79495164]
[1748898392183,0.04858552,105030.0,105020.0,2.82535111]
[1748898392386,0.04858552,105030.0,105020.0,2.79495164]
[1748898393612,0.04858552,105030.0,105020.0,2.82535111]
[1748898395235,0.04858552,105030.0,105020.0,3.31935486]
[1748898402944,0.02958552,105030.0,105020.0,3.31935486]
[1748898406802,0.02958552,105030.0,105020.0,3.82351258]
[1748898407433,0.02065923,105030.0,105020.0,3.82351258]
[1748898407685,0.02065923,105030.0,105020.0,3.82251258]
[1748898407895,0.02065923,105030.0,105020.0,3.82351258]
[1748898408106,0.02065923,105030.0,105020.0,3.33235486]
[1748898411224,0.07707075,105040.0,105030.0,0.22898394]
[1748898411426,0.07707075,105040.0,105030.0,1.72955682]
[1748898411627,0.07707075,105040.0,105030.0,2.02835682]
[1748898411842,0.07707075,105040.0,105030.0,2.42835682]
[1748898412487,0.0775551,105040.0,105030.0,2.42835682]
[1748898412695,0.0775551,105040.0,105030.0,2.43435682]
[1748898412894,0.0775551,105040.0,105030.0,2.40409453]
[1748898413107,0.0775551,105040.0,105030.0,2.40909453]
[1748898414149,0.01877291,105060.0,105050.0,0.07479758]
[1748898414391,0.01899712,105080.0,105070.0,0.04309215]
[1748898414634,0.01899712,105080.0,105070.0,2.7528489]
[1748898414877,0.02155936,105090.0,105080.0,2.08689375]
[1748898415117,0.02155936,105090.0,105080.0,2.48346805]
[1748898415363,0.05470083,105100.0,105090.0,0.60509977]
[1748898415565,0.0451907,105100.0,105090.0,1.69784781]
[1748898415779,0.0451907,105100.0,105090.0,1.70715397]
[1748898416004,0.00239511,105100.0,105090.0,1.70715397]
[1748898416422,0.02891321,105110.0,105100.0,0.26467894]
[1748898416664,0.02891321,105110.0,105100.0,0.94290011]
[1748898416870,0.01940308,105110.0,105100.0,0.94290011]
[1748898417085,0.00240308,105110.0,105100.0,0.32923324]
[1748898417286,0.02320341,105120.0,105110.0,0.60465813]
[1748898417496,0.02320341,105120.0,105110.0,0.66921243]
[1748898417750,0.02320341,105120.0,105110.0,0.65467158]
[1748898418670,0.02320341,105120.0,105110.0,0.60567158]
[1748898418870,0.51665028,105120.0,105110.0,0.31467158]
[1748898419086,0.51665028,105120.0,105110.0,0.31567158]
[1748898419516,1.01009715,105120.0,105110.0,0.22081728]
[1748898419730,1.01009715,105120.0,105100.0,0.19029495]
[1748898419731,0.37805372,105110.0,105100.0,0.19029495]
[1748898419935,1.44435362,105110.0,105100.0,0.21883809]
[1748898420140,0.92904735,105110.0,105100.0,0.21883809]
[1748898420339,0.92236687,105110.0,105100.0,0.21883809]
[1748898420580,0.93188007,105110.0,105100.0,0.21883809]
[1748898420756,0.92236687,105110.0,105100.0,0.21883809]
[1748898421087,0.83344687,105110.0,105100.0,0.21883809]
[1748898421292,0.92232687,105110.0,105100.0,0.21883809]
[1748898422099,0.92332687,105110.0,105100.0,0.21883809]
[1748898422714,0.92432687,105110.0,105100.0,0.21883809]
[1748898422871,0.93383989,105110.0,105100.0,0.21883809]
[1748898423118,0.92432687,105110.0,105100.0,0.21883809]
[1748898425298,0.93383998,105110.0,105100.0,0.21883809]
[1748898425498,0.92432687,105110.0,105100.0,0.21883809]
[1748898426122,0.82432687,105110.0,105100.0,0.21883809]
[1748898426301,0.58432687,105110.0,105100.0,0.21883809]
[1748898426990,0.49544687,105110.0,105100.0,0.21883809]
[1748898427189,0.51447309,105110.0,105100.0,0.21883809]
[1748898427402,0.50495989,105110.0,105100.0,0.21883809]
[1748898427648,0.5138669,105110.0,105100.0,0.21883809]
[1748898427888,0.52277382,105110.0,105100.0,0.21883809]
[1748898428140,0.50495998,105110.0,105100.0,0.21883809]
[1748898428374,0.52277382,105110.0,105100.0,0.21883809]
[1748898428588,0.53228684,105110.0,105100.0,0.21883809]
[1748898428819,0.54119376,105110.0,105100.0,0.21883809]
[1748898429019,0.50495989,105110.0,105100.0,0.21883809]
[1748898429342,0.52277373,105110.0,105100.0,0.21883809]
[1748898429568,0.49544687,105110.0,105100.0,0.21883809]
[1748898430023,0.50435378,105110.0,105100.0,0.21883809]
[1748898430261,0.51326069,105110.0,105100.0,0.21883809]
[1748898430481,0.5221676,105110.0,105100.0,0.21883809]
[1748898430747,0.49544687,105110.0,105100.0,0.21883809]
[1748898431008,0.51326069,105110.0,105100.0,0.50975809]
[1748898431246,0.0109058,105110.0,105100.0,0.63395268]
[1748898431480,0.01090534,105110.0,105100.0,0.63395268]
[1748898431705,0.002,105110.0,105100.0,0.63395268]
[1748898432165,0.01090551,105110.0,105100.0,0.63395268]
[1748898432390,0.49544687,105110.0,105100.0,0.60561239]
[1748898433078,0.50435231,105110.0,105100.0,0.60561239]
[1748898433321,0.49544687,105110.0,105100.0,0.60561239]
[1748898433807,0.002,105110.0,105100.0,0.60561239]
[1748898434041,0.51325796,105110.0,105100.0,0.60557239]
[1748898434287,0.51325825,105110.0,105100.0,0.31469239]
[1748898434509,0.49544687,105110.0,105100.0,0.60577239]
[1748898434735,0.50435304,105110.0,105100.0,0.31469239]
[1748898434970,0.53908638,105110.0,105100.0,0.31469239]
[1748898435197,1.0242341,105110.0,105100.0,0.21883809]
[1748898435409,0.52838723,105110.0,105100.0,0.21883809]
[1748898435657,0.50295998,105110.0,105100.0,0.21883809]
[1748898435908,0.72693674,105120.0,105110.0,0.01902723]
[1748898436175,6.69926361,105120.0,105110.0,0.20930408]
[1748898436406,6.72598452,105120.0,105110.0,0.20930408]
[1748898436630,6.69926361,105120.0,105110.0,0.20930408]
[1748898437085,6.70877654,105120.0,105110.0,0.21881747]
[1748898437310,6.72436374,105120.0,105110.0,0.21981747]
[1748898437550,6.70877654,105120.0,105110.0,0.21030408]
[1748898437758,6.72375814,105120.0,105110.0,0.2007906]
[1748898437970,6.7059442,105120.0,105110.0,0.21030426]
[1748898438198,6.69926397,105120.0,105110.0,0.21030426]
[1748898438456,6.71485117,105120.0,105110.0,0.21030426]
[1748898438699,6.68975113,105120.0,105110.0,0.21130426]
[1748898438919,6.60755136,105120.0,105110.0,0.22081774]
[1748898439181,6.71787652,105120.0,105110.0,0.21130426]
[1748898439430,6.70228932,105120.0,105110.0,0.21130426]
[1748898439726,6.70006258,105120.0,105110.0,0.002]
[1748898439980,6.69338235,105120.0,105110.0,0.002]
[1748898440213,6.70228932,105120.0,105110.0,0.002]
[1748898440459,6.70896973,105120.0,105110.0,0.002]
[1748898440667,6.79591698,105120.0,105110.0,0.002]
[1748898440880,6.79591712,105120.0,105110.0,0.002]
[1748898441090,6.80705124,105120.0,105110.0,0.002]
[1748898441303,6.79591716,105120.0,105110.0,0.002]
[1748898441710,6.80705135,105120.0,105110.0,0.002]
[1748898441932,0.34,105110.0,105090.0,0.26742189]
[1748898442146,6.57670316,105100.0,105090.0,0.00014505]
[1748898442571,6.59452102,105100.0,105090.0,0.00014505]
[1748898442781,6.68709831,105100.0,105090.0,0.00014505]
[1748898442987,6.71159786,105100.0,105090.0,0.00014505]
[1748898443190,6.69378,105100.0,105090.0,0.19997376]
[1748898443395,6.70491617,105100.0,105090.0,0.19997376]
[1748898443601,6.70491617,105100.0,105090.0,0.0096607]
[1748898443602,6.68709831,105100.0,105090.0,0.0096607]
[1748898443836,6.75049159,105100.0,105090.0,0.0096607]
[1748898444046,6.73699204,105100.0,105090.0,0.00114505]
[1748898444273,0.21887947,105080.0,105070.0,0.28634745]
[1748898444485,0.70281051,105080.0,105070.0,0.27697561]
[1748898444694,0.71241076,105080.0,105070.0,0.29601017]
[1748898445334,0.52507905,105080.0,105070.0,0.31504401]
[1748898445544,0.53459533,105080.0,105070.0,0.31504401]
[1748898446014,0.53459533,105080.0,105070.0,0.23808023]
[1748898446221,0.5441117,105080.0,105070.0,0.23808023]
[1748898446448,0.73544287,105080.0,105070.0,0.23808023]
[1748898446674,6.69236921,105080.0,105070.0,0.00014535]
[1748898447105,6.81276436,105080.0,105070.0,0.00014535]
[1748898447790,6.2462976,105060.0,105050.0,0.19990453]
[1748898448003,6.06544783,105060.0,105050.0,0.21908793]
[1748898448646,6.07214106,105060.0,105050.0,0.21908793]
[1748898448860,6.06544783,105060.0,105050.0,0.21908793]
[1748898449341,6.09281472,105060.0,105050.0,0.22860684]
[1748898449572,6.25129741,105060.0,105050.0,0.2200882]
[1748898449814,6.25129741,105060.0,105050.0,0.23912575]
[1748898449815,6.07044838,105060.0,105050.0,0.23912575]
[1748898450070,6.26081578,105060.0,105050.0,0.24012575]
[1748898450297,6.26081578,105060.0,105050.0,0.01166476]
[1748898450298,6.26881578,105060.0,105050.0,0.01166476]
[1748898450516,6.35180891,105060.0,105050.0,0.20205029]
[1748898450769,6.35180891,105060.0,105050.0,0.21156947]
[1748898451008,6.35180891,105060.0,105050.0,0.23060738]
[1748898451235,6.35180891,105060.0,105050.0,0.2401262]
[1748898451472,6.35180891,105060.0,105050.0,0.24012566]
[1748898452201,6.25929769,105060.0,105050.0,0.24012566]
[1748898452688,6.27703569,105060.0,105050.0,0.24012566]
[1748898452929,6.27703568,105060.0,105050.0,0.24012566]
[1748898453366,6.29477367,105060.0,105050.0,0.24012566]
[1748898453619,6.27703568,105060.0,105050.0,0.24012566]
[1748898453834,6.3695469,105060.0,105050.0,0.24012566]
[1748898454471,6.3872849,105060.0,105050.0,0.24012566]
[1748898454680,6.3695469,105060.0,105050.0,0.24012566]
[1748898455323,6.1791795,105060.0,105050.0,0.24012566]
[1748898455552,6.1969175,105060.0,105050.0,0.24012512]
[1748898455768,6.10440525,105060.0,105050.0,0.24012512]
[1748898455986,6.09618537,105060.0,105050.0,0.24012512]
[1748898456202,6.10570355,105060.0,105050.0,0.24012512]
[1748898456849,6.30558995,105060.0,105050.0,0.23060648]
[1748898457285,6.10570418,105060.0,105050.0,0.24012512]
[1748898457748,6.09618537,105060.0,105050.0,0.24012512]
[1748898458391,6.11392333,105060.0,105050.0,0.24012512]
[1748898458838,6.09618537,105060.0,105050.0,0.24012512]
[1748898459048,6.10570355,105060.0,105050.0,0.24012512]
[1748898459257,6.09618537,105060.0,105050.0,0.24012512]
[1748898459489,6.10570355,105060.0,105050.0,0.24012512]
[1748898459698,6.19821477,105060.0,105050.0,0.24012512]
[1748898460154,6.10570355,105060.0,105050.0,0.23060648]
[1748898460360,6.29607168,105060.0,105050.0,0.21156929]
[1748898460567,6.29607168,105060.0,105050.0,0.2210882]
[1748898461011,6.28655377,105060.0,105050.0,0.2210882]
[1748898461222,6.30429149,105060.0,105050.0,0.2210882]
[1748898461656,6.36002872,105060.0,105050.0,0.20205029]
[1748898461839,6.36002872,105060.0,105050.0,0.22108838]
[1748898462087,6.37776644,105060.0,105050.0,0.21156947]
[1748898462294,6.36002872,105060.0,105050.0,0.23060756]
[1748898462504,6.36002872,105060.0,105050.0,0.24012647]
[1748898463622,6.36002872,105060.0,105050.0,0.23060756]
[1748898463841,6.36002872,105060.0,105050.0,0.24012647]
[1748898464060,6.36954681,105060.0,105050.0,0.24012602]
[1748898464276,6.10570409,105060.0,105050.0,0.24012548]
[1748898464490,6.29607149,105060.0,105050.0,0.24012548]
[1748898464730,6.30558986,105060.0,105050.0,0.24012548]
[1748898465391,6.37906517,105060.0,105050.0,0.20205011]
[1748898465608,6.37906517,105060.0,105050.0,0.17973481]
[1748898465820,6.37906517,105060.0,105050.0,0.18925381]
[1748898466035,6.28655395,105060.0,105050.0,0.18925381]
[1748898466248,6.28655395,105060.0,105050.0,0.19877254]
[1748898466460,6.28655395,105060.0,105050.0,0.18925381]
[1748898466681,6.28655395,105060.0,105050.0,0.19877272]
[1748898467790,0.03073799,105060.0,105050.0,0.32507387]
[1748898468002,0.52418486,105060.0,105050.0,0.32507387]
[1748898468215,0.03073799,105060.0,105050.0,0.42092817]
[1748898468643,0.52418486,105060.0,105050.0,0.42092817]
[1748898471234,0.03073799,105060.0,105050.0,0.42092817]
[1748898474896,0.03073799,105060.0,105050.0,0.76092817]
[1748898475348,0.02573799,105060.0,105050.0,0.76092817]
[1748898475581,0.02573799,105060.0,105050.0,0.97560439]
[1748898475801,0.02773799,105060.0,105050.0,0.97560439]
[1748898476686,0.01973799,105060.0,105050.0,0.97560439]
[1748898476913,0.02073799,105060.0,105050.0,0.97560439]
[1748898480855,0.02073799,105060.0,105050.0,1.89479211]
[1748898481086,0.88537589,105120.0,105110.0,0.21881747]
[1748898481307,5.06902668,105110.0,105100.0,0.20930688]
[1748898481537,0.01902668,105110.0,105100.0,0.20930688]
[1748898482272,0.52198712,105110.0,105100.0,0.20930688]
[1748898482507,0.53164635,105110.0,105100.0,0.20930688]
[1748898482753,0.7219232,105110.0,105100.0,0.20930688]
[1748898482990,0.7339232,105110.0,105100.0,0.21030688]
[1748898483324,0.74343649,105110.0,105100.0,0.21030688]
[1748898483767,0.74343649,105110.0,105100.0,0.21982162]
[1748898484218,0.75343731,105110.0,105100.0,0.22082162]
[1748898484441,0.54413287,105110.0,105100.0,0.24583573]
[1748898484674,0.53461921,105110.0,105100.0,0.24583573]
[1748898484881,0.74392347,105110.0,105100.0,0.24583573]
[1748898485087,0.52510537,105110.0,105100.0,0.24583573]
[1748898485304,0.55364553,105110.0,105100.0,0.24583573]
[1748898485714,0.55364553,105110.0,105100.0,0.26093573]
[1748898486364,0.75343622,105110.0,105100.0,0.26093573]
[1748898486591,0.55364544,105110.0,105100.0,0.26093573]
[1748898487037,0.04117161,105110.0,105100.0,0.26093573]
[1748898487251,0.51559235,105110.0,105100.0,0.26093573]
[1748898487465,0.51559235,105110.0,105100.0,0.35679003]
[1748898487684,0.73440936,105110.0,105100.0,0.23239313]
[1748898487915,0.74029625,105110.0,105100.0,0.29424]
[1748898488134,0.74029625,105110.0,105100.0,0.49404951]
[1748898488357,0.74029625,105110.0,105100.0,0.51307836]
[1748898490085,6.1112692,105110.0,105100.0,0.002]
[1748898490296,6.1154692,105110.0,105100.0,0.002]
[1748898490992,6.1154692,105110.0,105090.0,0.53689421]
[1748898491202,0.51247554,105100.0,105090.0,0.53689421]
[1748898492226,0.52199001,105100.0,105090.0,0.53789421]
[1748898492429,0.53099001,105100.0,105090.0,0.24677421]
[1748898492630,0.53099001,105100.0,105090.0,0.53781421]
[1748898492861,0.53899001,105100.0,105090.0,0.55381421]
[1748898493299,0.54850439,105100.0,105090.0,0.55381421]
[1748898494152,0.55801904,105100.0,105090.0,0.55381421]
[1748898494612,0.54850439,105100.0,105090.0,0.55381421]
[1748898494816,0.53898983,105100.0,105090.0,0.55381421]
[1748898495037,0.77692432,105100.0,105090.0,0.0184]
[1748898495262,5.82692432,105100.0,105090.0,0.29412]
[1748898495478,0.51044687,105100.0,105090.0,0.54407892]
[1748898495708,0.529475,105100.0,105090.0,0.54407892]